fUST/lending_fUST_20260518
["ID","MTS","AMOUNT","RATE_DAILY","PERIOD"]
[422526856,1779037841000,-500.0,0.00010958,2]
[422526833,1779037841000,-500.0,0.00010958,2]
[422526812,1779037841000,-500.0,0.00010958,2]
[422526869,1779037841000,-500.0,0.00010958,2]
[422526786,1779037841000,-500.0,0.00010958,2]
[422526747,1779037841000,-3932.78,0.00010958,2]
[422526749,1779037841000,-500.0,0.00010958,2]
[422526745,1779037841000,-557.61,0.00010958,2]
[422526751,1779037841000,-500.0,0.00010958,2]
[422526753,1779037841000,-503.05,0.00010958,2]
[422526757,1779037841000,-500.0,0.00010958,2]
[422526755,1779037841000,-500.0,0.00010958,2]
[422526761,1779037841000,-500.81,0.00010958,2]
[422526763,1779037841000,-500.0,0.00010958,2]
[422526759,1779037841000,-235.59086923,0.00010958,2]
[422526762,1779037841000,-500.0,0.00010958,2]
[422526766,1779037841000,-706.55,0.00010958,2]
[422526768,1779037841000,-500.0,0.00010958,2]
[422526808,1779037841000,-500.0,0.00010958,2]
[422526765,1779037841000,-500.0,0.00010958,2]
[422526767,1779037841000,-500.0,0.00010958,2]
[422526770,1779037841000,-500.0,0.00010958,2]
[422526769,1779037841000,-500.0,0.00010958,2]
[422526772,1779037841000,-500.0,0.00010958,2]
[422526782,1779037841000,-500.0,0.00010958,2]
[422526792,1779037841000,-965.64,0.00010958,2]
[422526781,1779037841000,-831.85,0.00010958,2]
[422526774,1779037841000,-598.58,0.00010958,2]
[422526777,1779037841000,-500.0,0.00010958,2]
[422526785,1779037841000,-500.0,0.00010958,2]
[422526790,1779037841000,-500.0,0.00010958,2]
[422526788,1779037841000,-500.0,0.00010958,2]
[422526778,1779037841000,-639.16,0.00010958,2]
[422526764,1779037841000,-3040.13,0.00010958,2]
[422526845,1779037841000,-500.0,0.00010958,2]
[422526889,1779037841000,-995.25,0.00010958,2]
[422526864,1779037841000,-500.0,0.00010958,2]
[422526936,1779037841000,-500.0,0.00010958,2]
[422526926,1779037841000,-500.0,0.00010958,2]
[422526946,1779037841000,-701.25,0.00010958,2]
[422526942,1779037841000,-867.67,0.00010958,2]
[422526940,1779037841000,-500.0,0.00010958,2]
[422526927,1779037841000,-500.0,0.00010958,2]
[422526931,1779037841000,-500.0,0.00010958,2]
[422526934,1779037841000,-500.0,0.00010958,2]
[422526944,1779037841000,-500.0,0.00010958,2]
[422526929,1779037841000,-698.8,0.00010958,2]
[422526938,1779037841000,-500.0,0.00010958,2]
[422526947,1779037841000,-2543.75,0.00010958,2]
[422526949,1779037841000,-500.0,0.00010958,2]
[422526924,1779037841000,-1110.99,0.00010958,2]
[422526965,1779037841000,-487.29636291,0.00010958,2]
[422526963,1779037841000,-877.79,0.00010958,2]
[422526969,1779037841000,-921.71,0.00010958,2]
[422526953,1779037841000,-500.0,0.00010958,2]
[422526967,1779037841000,-701.75,0.00010958,2]
[422526955,1779037841000,-822.64,0.00010958,2]
[422526952,1779037841000,-1111.72,0.00010958,2]
[422526973,1779037841000,-987.44,0.00010958,2]
[422526959,1779037841000,-679.97,0.00010958,2]
[422526971,1779037841000,-500.0,0.00010958,2]
[422526975,1779037841000,-500.0,0.00010958,2]
[422526979,1779037841000,-500.0,0.00010958,2]
[422526977,1779037841000,-500.0,0.00010958,2]
[422526852,1779037841000,-999.81,0.00010958,2]
[422526957,1779037841000,-500.0,0.00010958,2]
[422526920,1779037841000,-2420.48,0.00010958,2]
[422526961,1779037841000,-500.0,0.00010958,2]
[422526914,1779037841000,-500.0,0.00010958,2]
[422526922,1779037841000,-1475.83,0.00010958,2]
[422526854,1779037841000,-5826.05,0.00010958,2]
[422526850,1779037841000,-500.0,0.00010958,2]
[422526868,1779037841000,-583.4,0.00010958,2]
[422526862,1779037841000,-500.0,0.00010958,2]
[422526875,1779037841000,-747.81,0.00010958,2]
[422526981,1779037841000,-500.0,0.00010958,2]
[422526883,1779037841000,-500.0,0.00010958,2]
[422526887,1779037841000,-500.0,0.00010958,2]
[422526895,1779037841000,-500.0,0.00010958,2]
[422526879,1779037841000,-500.0,0.00010958,2]
[422526891,1779037841000,-500.0,0.00010958,2]
[422526896,1779037841000,-674.29,0.00010958,2]
[422526877,1779037841000,-1924.43,0.00010958,2]
[422526858,1779037841000,-5760.67,0.00010958,2]
[422526893,1779037841000,-500.0,0.00010958,2]
[422526885,1779037841000,-500.0,0.00010958,2]
[422526912,1779037841000,-500.0,0.00010958,2]
[422526916,1779037841000,-500.0,0.00010958,2]
[422526906,1779037841000,-500.0,0.00010958,2]
[422526918,1779037841000,-640.84892177,0.00010958,2]
[422526904,1779037841000,-599.2,0.00010958,2]
[422526908,1779037841000,-500.0,0.00010958,2]
[422526898,1779037841000,-500.0,0.00010958,2]
[422526871,1779037841000,-719.5,0.00010958,2]
[422526902,1779037841000,-500.0,0.00010958,2]
[422526873,1779037841000,-765.77,0.00010958,2]
[422526881,1779037841000,-2727.67,0.00010958,2]
[422526910,1779037841000,-500.0,0.00010958,2]
[422526900,1779037841000,-745.85,0.00010958,2]
[422527051,1779037842000,-500.0,0.00010958,2]
[422527038,1779037842000,-500.0,0.00010958,2]
[422527035,1779037842000,-500.0,0.00010958,2]
[422527031,1779037842000,-500.0,0.00010958,2]
[422527055,1779037842000,-655.24,0.00010958,2]
[422527044,1779037842000,-656.71,0.00010958,2]
[422527046,1779037842000,-755.33,0.00010958,2]
[422527048,1779037842000,-500.0,0.00010958,2]
[422527049,1779037842000,-500.0,0.00010958,2]
[422527053,1779037842000,-500.0,0.00010958,2]
[422527033,1779037842000,-500.0,0.00010958,2]
[422527062,1779037842000,-500.0,0.00010958,2]
[422527072,1779037842000,-500.0,0.00010958,2]
[422527057,1779037842000,-640.83,0.00010958,2]
[422527074,1779037842000,-732.42,0.00010958,2]
[422527070,1779037842000,-624.81,0.00010958,2]
[422527078,1779037842000,-500.0,0.00010958,2]
[422527066,1779037842000,-500.0,0.00010958,2]
[422527059,1779037842000,-500.0,0.00010958,2]
[422527076,1779037842000,-5212.91,0.00010958,2]
[422527061,1779037842000,-500.0,0.00010958,2]
[422527037,1779037842000,-500.0,0.00010958,2]
[422527064,1779037842000,-645.83,0.00010958,2]
[422527068,1779037842000,-500.0,0.00010958,2]
[422527042,1779037842000,-500.0,0.00010958,2]
[422527001,1779037842000,-500.0,0.00010958,2]
[422527028,1779037842000,-801.51,0.00010958,2]
[422527080,1779037842000,-500.0,0.00010958,2]
[422526985,1779037842000,-500.0,0.00010958,2]
[422526993,1779037842000,-500.0,0.00010958,2]
[422526989,1779037842000,-500.0,0.00010958,2]
[422526995,1779037842000,-1051.55,0.00010958,2]
[422526991,1779037842000,-500.0,0.00010958,2]
[422526999,1779037842000,-2197.49,0.00010958,2]
[422526997,1779037842000,-3157.26,0.00010958,2]
[422526983,1779037842000,-500.0,0.00010958,2]
[422527002,1779037842000,-500.0,0.00010958,2]
[422526987,1779037842000,-500.0,0.00010958,2]
[422527040,1779037842000,-500.0,0.00010958,2]
[422527024,1779037842000,-500.0,0.00010958,2]
[422527026,1779037842000,-500.0,0.00010958,2]
[422527014,1779037842000,-682.85,0.00010958,2]
[422527012,1779037842000,-500.0,0.00010958,2]
[422527020,1779037842000,-500.0,0.00010958,2]
[422527016,1779037842000,-500.0,0.00010958,2]
[422527010,1779037842000,-500.0,0.00010958,2]
[422527018,1779037842000,-500.0,0.00010958,2]
[422527004,1779037842000,-500.0,0.00010958,2]
[422527008,1779037842000,-775.33,0.00010958,2]
[422527030,1779037842000,-500.0,0.00010958,2]
[422527022,1779037842000,-5300.24,0.00010958,2]
[422527006,1779037842000,-1652.22,0.00010958,2]
[422527082,1779037842000,-500.0,0.00010958,2]
[422527103,1779037842000,-500.0,0.00010958,2]
[422527086,1779037842000,-500.0,0.00010958,2]
[422527173,1779037842000,-500.0,0.00010958,2]
[422527162,1779037842000,-1445.74,0.00010958,2]
[422527176,1779037842000,-500.0,0.00010958,2]
[422527171,1779037842000,-500.0,0.00010958,2]
[422527165,1779037842000,-500.0,0.00010958,2]
[422527179,1779037842000,-684.41,0.00010958,2]
[422527168,1779037842000,-500.0,0.00010958,2]
[422527181,1779037842000,-4758.82,0.00010958,2]
[422527183,1779037842000,-500.0,0.00010958,2]
[422527190,1779037842000,-500.0,0.00010958,2]
[422527191,1779037842000,-807.86,0.00010958,2]
[422527148,1779037842000,-608.71,0.00010958,2]
[422527186,1779037842000,-500.0,0.00010958,2]
[422527189,1779037842000,-500.0,0.00010958,2]
[422527188,1779037842000,-500.0,0.00010958,2]
[422527193,1779037842000,-1497.64,0.00010958,2]
[422527205,1779037842000,-2525.02,0.00010958,2]
[422527203,1779037842000,-506.62,0.00010958,2]
[422527196,1779037842000,-500.0,0.00010958,2]
[422527210,1779037842000,-583.4,0.00010958,2]
[422527198,1779037842000,-572.65372413,0.00010958,2]
[422527084,1779037842000,-500.0,0.00010958,2]
[422527201,1779037842000,-500.0,0.00010958,2]
[422527213,1779037842000,-2665.87,0.00010958,2]
[422527187,1779037842000,-458.14784718,0.00010958,2]
[422527155,1779037842000,-1592.28,0.00010958,2]
[422527208,1779037842000,-500.0,0.00010958,2]
[422527145,1779037842000,-278.75250699,0.00010958,2]
[422527159,1779037842000,-500.0,0.00010958,2]
[422527095,1779037842000,-500.0,0.00010958,2]
[422527099,1779037842000,-500.0,0.00010958,2]
[422527088,1779037842000,-178.83575365,0.00010958,2]
[422527092,1779037842000,-2001.49,0.00010958,2]
[422527090,1779037842000,-500.0,0.00010958,2]
[422527101,1779037842000,-500.0,0.00010958,2]
[422527094,1779037842000,-500.0,0.00010958,2]
[422527107,1779037842000,-500.0,0.00010958,2]
[422527109,1779037842000,-565.01,0.00010958,2]
[422527105,1779037842000,-500.0,0.00010958,2]
[422527110,1779037842000,-500.0,0.00010958,2]
[422527097,1779037842000,-694.07,0.00010958,2]
[422527115,1779037842000,-500.0,0.00010958,2]
[422527113,1779037842000,-559.04,0.00010958,2]
[422527151,1779037842000,-500.0,0.00010958,2]
[422527141,1779037842000,-500.0,0.00010958,2]
[422527137,1779037842000,-500.0,0.00010958,2]
[422527122,1779037842000,-675.73,0.00010958,2]
[422527143,1779037842000,-500.0,0.00010958,2]
[422527132,1779037842000,-500.0,0.00010958,2]
[422527120,1779037842000,-500.0,0.00010958,2]
[422527118,1779037842000,-500.0,0.00010958,2]
[422527117,1779037842000,-500.0,0.00010958,2]
[422527125,1779037842000,-4585.85,0.00010958,2]
[422527277,1779037843000,-500.0,0.00010958,2]
[422527299,1779037843000,-500.0,0.00010958,2]
[422527290,1779037843000,-500.0,0.00010958,2]
[422527284,1779037843000,-500.0,0.00010958,2]
[422527297,1779037843000,-876.34,0.00010958,2]
[422527294,1779037843000,-500.0,0.00010958,2]
[422527282,1779037843000,-500.0,0.00010958,2]
[422527280,1779037843000,-662.84,0.00010958,2]
[422527292,1779037843000,-500.0,0.00010958,2]
[422527287,1779037843000,-500.0,0.00010958,2]
[422527307,1779037843000,-655.28,0.00010958,2]
[422527304,1779037843000,-500.0,0.00010958,2]
[422527315,1779037843000,-500.0,0.00010958,2]
[422527309,1779037843000,-500.0,0.00010958,2]
[422527312,1779037843000,-713.16,0.00010958,2]
[422527323,1779037843000,-500.0,0.00010958,2]
[422527332,1779037843000,-500.0,0.00010958,2]
[422527344,1779037843000,-4022.22,0.00010958,2]
[422527337,1779037843000,-4538.21,0.00010958,2]
[422527339,1779037843000,-696.6,0.00010958,2]
[422527264,1779037843000,-500.0,0.00010958,2]
[422527348,1779037843000,-1257.01,0.00010958,2]
[422527302,1779037843000,-780.4,0.00010958,2]
[422527266,1779037843000,-2435.02,0.00010958,2]
[422527243,1779037843000,-879.63,0.00010958,2]
[422527268,1779037843000,-726.02,0.00010958,2]
[422527325,1779037843000,-500.0,0.00010958,2]
[422527221,1779037843000,-8102.8,0.00010958,2]
[422527226,1779037843000,-500.0,0.00010958,2]
[422527224,1779037843000,-500.0,0.00010958,2]
[422527219,1779037843000,-11080.44,0.00010958,2]
[422527216,1779037843000,-538.73,0.00010958,2]
[422527234,1779037843000,-500.0,0.00010958,2]
[422527229,1779037843000,-500.0,0.00010958,2]
[422527231,1779037843000,-500.0,0.00010958,2]
[422527238,1779037843000,-500.0,0.00010958,2]
[422527259,1779037843000,-1430.53,0.00010958,2]
[422527241,1779037843000,-1454.81,0.00010958,2]
[422527236,1779037843000,-500.0,0.00010958,2]
[422527250,1779037843000,-562.57,0.00010958,2]
[422527248,1779037843000,-500.0,0.00010958,2]
[422527253,1779037843000,-500.0,0.00010958,2]
[422527255,1779037843000,-500.0,0.00010958,2]
[422527275,1779037843000,-500.0,0.00010958,2]
[422527271,1779037843000,-500.0,0.00010958,2]
[422527261,1779037843000,-905.19,0.00010958,2]
[422527257,1779037843000,-500.0,0.00010958,2]
[422527272,1779037843000,-500.0,0.00010958,2]
[422527245,1779037843000,-5289.19,0.00010958,2]
[422527335,1779037843000,-680.83,0.00010958,2]
[422527320,1779037843000,-500.0,0.00010958,2]
[422527330,1779037843000,-500.0,0.00010958,2]
[422527399,1779037843000,-261.6490053,0.00010958,2]
[422527396,1779037843000,-2883.38,0.00010958,2]
[422527402,1779037843000,-500.0,0.00010958,2]
[422527409,1779037843000,-500.0,0.00010958,2]
[422527417,1779037843000,-784.73,0.00010958,2]
[422527415,1779037843000,-500.0,0.00010958,2]
[422527405,1779037843000,-3299.48,0.00010958,2]
[422527404,1779037843000,-767.61,0.00010958,2]
[422527400,1779037843000,-500.0,0.00010958,2]
[422527407,1779037843000,-500.0,0.00010958,2]
[422527411,1779037843000,-11524.62,0.00010958,2]
[422527419,1779037843000,-500.0,0.00010958,2]
[422527413,1779037843000,-500.0,0.00010958,2]
[422527428,1779037843000,-1070.41,0.00010958,2]
[422527425,1779037843000,-500.0,0.00010958,2]
[422527432,1779037843000,-8332.5,0.00010958,2]
[422527436,1779037843000,-500.0,0.00010958,2]
[422527421,1779037843000,-593.76,0.00010958,2]
[422527438,1779037843000,-758.09,0.00010958,2]
[422527434,1779037843000,-500.0,0.00010958,2]
[422527423,1779037843000,-500.0,0.00010958,2]
[422527440,1779037843000,-3735.55,0.00010958,2]
[422527328,1779037843000,-500.0,0.00010958,2]
[422527390,1779037843000,-500.0,0.00010958,2]
[422527394,1779037843000,-3964.99,0.00010958,2]
[422527431,1779037843000,-500.0,0.00010958,2]
[422527388,1779037843000,-7832.36,0.00010958,2]
[422527392,1779037843000,-1132.19,0.00010958,2]
[422527343,1779037843000,-540.47,0.00010958,2]
[422527346,1779037843000,-500.0,0.00010958,2]
[422527350,1779037843000,-598.79,0.00010958,2]
[422527360,1779037843000,-745.82,0.00010958,2]
[422527358,1779037843000,-500.0,0.00010958,2]
[422527364,1779037843000,-500.0,0.00010958,2]
[422527362,1779037843000,-500.0,0.00010958,2]
[422527352,1779037843000,-798.26,0.00010958,2]
[422527356,1779037843000,-221.47412464,0.00010958,2]
[422527427,1779037843000,-3068.78,0.00010958,2]
[422527340,1779037843000,-500.0,0.00010958,2]
[422527366,1779037843000,-3783.07,0.00010958,2]
[422527384,1779037843000,-500.0,0.00010958,2]
[422527354,1779037843000,-500.0,0.00010958,2]
[422527386,1779037843000,-8982.18,0.00010958,2]
[422527374,1779037843000,-500.0,0.00010958,2]
[422527376,1779037843000,-4601.94,0.00010958,2]
[422527380,1779037843000,-500.0,0.00010958,2]
[422527378,1779037843000,-519.39,0.00010958,2]
[422527372,1779037843000,-500.0,0.00010958,2]
[422527368,1779037843000,-500.0,0.00010958,2]
[422527370,1779037843000,-500.0,0.00010958,2]
[422527382,1779037843000,-786.23,0.00010958,2]
[422527521,1779037844000,-500.0,0.00010958,2]
[422527537,1779037844000,-531.24,0.00010958,2]
[422527525,1779037844000,-1105.15,0.00010958,2]
[422527538,1779037844000,-2837.46,0.00010958,2]
[422527523,1779037844000,-500.0,0.00010958,2]
[422527502,1779037844000,-500.0,0.00010958,2]
[422527506,1779037844000,-601.4,0.00010958,2]
[422527507,1779037844000,-500.0,0.00010958,2]
[422527517,1779037844000,-536.99795591,0.00010958,2]
[422527535,1779037844000,-542.26157881,0.00010958,2]
[422527513,1779037844000,-500.0,0.00010958,2]
[422527504,1779037844000,-933.1,0.00010958,2]
[422527519,1779037844000,-500.0,0.00010958,2]
[422527540,1779037844000,-500.0,0.00010958,2]
[422527531,1779037844000,-952.16,0.00010958,2]
[422527527,1779037844000,-500.0,0.00010958,2]
[422527542,1779037844000,-169.08681563,0.00010958,2]
[422527529,1779037844000,-443.43544794,0.00010958,2]
[422527533,1779037844000,-413.55672296,0.00010958,2]
[422527543,1779037844000,-500.0,0.00010958,2]
[422527544,1779037844000,-872.61,0.00010958,2]
[422527548,1779037844000,-500.0,0.00010958,2]
[422527545,1779037844000,-500.0,0.00010958,2]
[422527549,1779037844000,-627.99,0.00010958,2]
[422527556,1779037844000,-683.42,0.00010958,2]
[422527564,1779037844000,-500.0,0.00010958,2]
[422527554,1779037844000,-1682.51,0.00010958,2]
[422527561,1779037844000,-500.0,0.00010958,2]
[422527515,1779037844000,-4482.48,0.00010958,2]
[422527541,1779037844000,-2179.25,0.00010958,2]
[422527511,1779037844000,-831.96,0.00010958,2]
[422527452,1779037844000,-624.11953229,0.00010958,2]
[422527500,1779037844000,-500.0,0.00010958,2]
[422527444,1779037844000,-660.78,0.00010958,2]
[422527442,1779037844000,-1468.84,0.00010958,2]
[422527458,1779037844000,-500.0,0.00010958,2]
[422527448,1779037844000,-500.0,0.00010958,2]
[422527460,1779037844000,-240.13172443,0.00010958,2]
[422527446,1779037844000,-3558.74,0.00010958,2]
[422527462,1779037844000,-1000.0,0.00010958,2]
[422527557,1779037844000,-3014.22,0.00010958,2]
[422527464,1779037844000,-500.0,0.00010958,2]
[422527466,1779037844000,-380.16664153,0.00010958,2]
[422527450,1779037844000,-500.0,0.00010958,2]
[422527456,1779037844000,-500.0,0.00010958,2]
[422527454,1779037844000,-500.0,0.00010958,2]
[422527467,1779037844000,-55585.83,0.00010958,2]
[422527498,1779037844000,-724.49,0.00010958,2]
[422527469,1779037844000,-500.0,0.00010958,2]
[422527495,1779037844000,-500.0,0.00010958,2]
[422527475,1779037844000,-500.0,0.00010958,2]
[422527493,1779037844000,-2149.05,0.00010958,2]
[422527489,1779037844000,-500.0,0.00010958,2]
[422527477,1779037844000,-500.0,0.00010958,2]
[422527483,1779037844000,-500.0,0.00010958,2]
[422527496,1779037844000,-500.0,0.00010958,2]
[422527471,1779037844000,-500.0,0.00010958,2]
[422527485,1779037844000,-618.16,0.00010958,2]
[422527487,1779037844000,-500.0,0.00010958,2]
[422527473,1779037844000,-500.0,0.00010958,2]
[422527479,1779037844000,-500.0,0.00010958,2]
[422527491,1779037844000,-10709.86,0.00010958,2]
[422527509,1779037844000,-4685.91,0.00010958,2]
[422527481,1779037844000,-2381.75,0.00010958,2]
[422527559,1779037844000,-1337.08,0.00010958,2]
[422527547,1779037844000,-500.0,0.00010958,2]
[422527563,1779037844000,-9173.66,0.00010958,2]
[422527618,1779037844000,-151.0,0.00010959,2]
[422527629,1779037844000,-171.142573,0.00010959,2]
[422527628,1779037844000,-151.0,0.00010959,2]
[422527631,1779037844000,-151.0,0.00010959,2]
[422527639,1779037844000,-151.243088,0.00010959,2]
[422527622,1779037844000,-151.0,0.00010959,2]
[422527633,1779037844000,-151.0,0.00010959,2]
[422527637,1779037844000,-151.000006,0.00010959,2]
[422527651,1779037844000,-151.0,0.00010959,2]
[422527645,1779037844000,-151.0,0.00010959,2]
[422527653,1779037844000,-151.0,0.00010959,2]
[422527641,1779037844000,-151.0,0.00010959,2]
[422527665,1779037844000,-151.0,0.00010959,2]
[422527647,1779037844000,-151.0,0.00010959,2]
[422527620,1779037844000,-151.0,0.00010959,2]
[422527657,1779037844000,-215.489053,0.00010959,2]
[422527649,1779037844000,-151.0,0.00010959,2]
[422527661,1779037844000,-151.0,0.00010959,2]
[422527659,1779037844000,-151.0,0.00010959,2]
[422527643,1779037844000,-151.0,0.00010959,2]
[422527663,1779037844000,-151.0,0.00010959,2]
[422527667,1779037844000,-151.0,0.00010959,2]
[422527674,1779037844000,-151.0,0.00010959,2]
[422527678,1779037844000,-151.0,0.00010959,2]
[422527676,1779037844000,-151.0,0.00010959,2]
[422527668,1779037844000,-151.0,0.00010959,2]
[422527680,1779037844000,-151.0,0.00010959,2]
[422527672,1779037844000,-151.0,0.00010959,2]
[422527546,1779037844000,-500.0,0.00010958,2]
[422527670,1779037844000,-151.0,0.00010959,2]
[422527655,1779037844000,-151.0,0.00010959,2]
[422527635,1779037844000,-151.0,0.00010959,2]
[422527682,1779037844000,-179.42599,0.00010959,2]
[422527624,1779037844000,-151.0,0.00010959,2]
[422527625,1779037844000,-155.112596,0.00010959,2]
[422527552,1779037844000,-511.69,0.00010958,2]
[422527577,1779037844000,-500.0,0.00010958,2]
[422527568,1779037844000,-500.0,0.00010958,2]
[422527579,1779037844000,-500.0,0.00010958,2]
[422527570,1779037844000,-2442.07,0.00010958,2]
[422527566,1779037844000,-1174.11,0.00010958,2]
[422527581,1779037844000,-3332.3,0.00010958,2]
[422527582,1779037844000,-500.0,0.00010958,2]
[422527584,1779037844000,-2095.1,0.00010958,2]
[422527572,1779037844000,-500.0,0.00010958,2]
[422527575,1779037844000,-7955.42,0.00010958,2]
[422527573,1779037844000,-3428.31,0.00010958,2]
[422527587,1779037844000,-174.0,0.00010959,3]
[422527586,1779037844000,-500.0,0.00010958,2]
[422527551,1779037844000,-500.0,0.00010958,2]
[422527595,1779037844000,-544.31017059,0.00010959,7]
[422527589,1779037844000,-3275.84,0.00010959,2]
[422527614,1779037844000,-151.0,0.00010959,2]
[422527612,1779037844000,-151.0,0.00010959,2]
[422527608,1779037844000,-151.0,0.00010959,2]
[422527604,1779037844000,-151.0,0.00010959,2]
[422527606,1779037844000,-151.0,0.00010959,2]
[422527616,1779037844000,-151.0,0.00010959,2]
[422527603,1779037844000,-256.312384,0.00010959,2]
[422527597,1779037844000,-816.46525588,0.00010959,7]
[422527600,1779037844000,-151.0,0.00010959,2]
[422527591,1779037844000,-1555.0,0.00010959,2]
[422527599,1779037844000,-253.687779,0.00010959,2]
[422527593,1779037844000,-272.15508529,0.00010959,7]
[422527610,1779037844000,-151.0,0.00010959,2]
[422527768,1779037845000,-178.474925,0.00010959,2]
[422527763,1779037845000,-178.474925,0.00010959,2]
[422527761,1779037845000,-177.060126,0.00010959,2]
[422527766,1779037845000,-178.474925,0.00010959,2]
[422527764,1779037845000,-178.474925,0.00010959,2]
[422527748,1779037845000,-556.600273,0.00010959,2]
[422527757,1779037845000,-556.600273,0.00010959,2]
[422527756,1779037845000,-556.600273,0.00010959,2]
[422527752,1779037845000,-556.600273,0.00010959,2]
[422527750,1779037845000,-556.600273,0.00010959,2]
[422527770,1779037845000,-178.474925,0.00010959,2]
[422527746,1779037845000,-556.600273,0.00010959,2]
[422527754,1779037845000,-556.600273,0.00010959,2]
[422527772,1779037845000,-178.474925,0.00010959,2]
[422527773,1779037845000,-178.474925,0.00010959,2]
[422527774,1779037845000,-178.474925,0.00010959,2]
[422527788,1779037845000,-178.474925,0.00010959,2]
[422527789,1779037845000,-178.474925,0.00010959,2]
[422527777,1779037845000,-178.474925,0.00010959,2]
[422527782,1779037845000,-178.474925,0.00010959,2]
[422527786,1779037845000,-178.474925,0.00010959,2]
[422527780,1779037845000,-178.474925,0.00010959,2]
[422527778,1779037845000,-178.474925,0.00010959,2]
[422527791,1779037845000,-178.474925,0.00010959,2]
[422527793,1779037845000,-178.474925,0.00010959,2]
[422527808,1779037845000,-216.198292,0.00010959,2]
[422527801,1779037845000,-151.0,0.00010959,2]
[422527759,1779037845000,-556.600281,0.00010959,2]
[422527784,1779037845000,-178.474925,0.00010959,2]
[422527732,1779037845000,-556.600273,0.00010959,2]
[422527710,1779037845000,-258.223351,0.00010959,2]
[422527733,1779037845000,-556.600273,0.00010959,2]
[422527685,1779037845000,-258.223351,0.00010959,2]
[422527688,1779037845000,-258.223351,0.00010959,2]
[422527686,1779037845000,-258.223351,0.00010959,2]
[422527690,1779037845000,-258.223351,0.00010959,2]
[422527712,1779037845000,-258.223351,0.00010959,2]
[422527699,1779037845000,-258.223351,0.00010959,2]
[422527692,1779037845000,-258.223351,0.00010959,2]
[422527700,1779037845000,-258.223351,0.00010959,2]
[422527702,1779037845000,-258.223351,0.00010959,2]
[422527696,1779037845000,-258.223351,0.00010959,2]
[422527695,1779037845000,-258.223351,0.00010959,2]
[422527708,1779037845000,-258.223351,0.00010959,2]
[422527714,1779037845000,-258.223351,0.00010959,2]
[422527724,1779037845000,-556.600273,0.00010959,2]
[422527706,1779037845000,-258.223351,0.00010959,2]
[422527716,1779037845000,-258.223351,0.00010959,2]
[422527718,1779037845000,-258.223351,0.00010959,2]
[422527739,1779037845000,-556.600273,0.00010959,2]
[422527741,1779037845000,-556.600273,0.00010959,2]
[422527730,1779037845000,-556.600273,0.00010959,2]
[422527743,1779037845000,-556.600273,0.00010959,2]
[422527720,1779037845000,-258.223351,0.00010959,2]
[422527804,1779037845000,-151.0,0.00010959,2]
[422527735,1779037845000,-556.600273,0.00010959,2]
[422527722,1779037845000,-258.223353,0.00010959,2]
[422527726,1779037845000,-556.600273,0.00010959,2]